[Event "44th Chess Olympiad Women 2022"]
[Site "Chennai"]
[Date "2022.08.03"]
[Round "6.28"]
[White "Onur, Cigdem"]
[Black "Paulo, Jemima"]
[Result "0-1"]
[WhiteElo "2000"]
[BlackElo "1850"]
[Annotator "NA RC"]
[PlyCount "86"]
[EventDate "2022.??.??"]
[TimeControl "60"]

1. d4 {[%emt 0:00:02]} Nf6 {[%emt 0:01:45]} 2. c4 {[%emt 0:00:48]} g6 {[%emt 0:
00:00]} 3. Nc3 {[%emt 0:00:07]} Bg7 {[%emt 0:00:10]} 4. e4 {[%emt 0:00:14]} d6
{[%emt 0:00:40]} 5. f3 {[%emt 0:00:14]} O-O {[%emt 0:01:28]} 6. Be3 {[%emt 0:
00:00]} e5 {[%emt 0:00:10]} 7. Nge2 {[%emt 0:02:09]} Nbd7 {[%emt 0:02:42]} 8.
Qd2 {[%emt 0:01:28]} Re8 {[%emt 0:01:36]} 9. Bh6 {[%emt 0:13:34]} exd4 {
[%emt 0:09:13]} 10. Nxd4 {[%emt 0:08:13]} Nxe4 {[%emt 0:02:28]} 11. fxe4 {
[%emt 0:00:31]} Bxd4 {[%emt 0:04:39]} 12. Qxd4 {[%emt 0:00:47]} Qh4+ {[%emt 0:
00:00]} 13. g3 {[%emt 0:04:20]} Qxh6 {[%emt 0:00:07]} 14. Bg2 {[%emt 0:02:10]}
c6 {[%emt 0:04:02]} 15. O-O {[%emt 0:13:56]} Ne5 {[%emt 0:00:15]} 16. Rf4 {
[%emt 0:02:38]} Be6 {[%emt 0:02:20]} 17. c5 {[%emt 0:04:16]} Qg7 {[%emt 0:00:
00]} 18. Rd1 {[%emt 0:09:32]} dxc5 {[%emt 0:03:23]} 19. Qxc5 {[%emt 0:00:24]}
Nc4 {[%emt 0:21:41]} 20. Bf1 {[%emt 0:07:22]} b6 {[%emt 0:00:00]} 21. Qxc6 {
[%emt 0:18:41]} Rec8 {[%emt 0:00:00]} 22. Qb5 {[%emt 0:02:56]} Nxb2 {[%emt 0:
00:00]} 23. Qxb2 {[%emt 0:00:49]} Rxc3 {[%emt 0:00:00]} 24. Rf2 {[%emt 0:01:42]
} Qe5 {[%emt 0:00:00]} 25. Bg2 {[%emt 0:02:36]} Rac8 {[%emt 0:00:00]} 26. Rfd2
{[%emt 0:01:03]} Qc5+ {[%emt 0:00:00]} 27. Kh1 {[%emt 0:00:05]} Qa3 {[%emt 0:
00:00]} 28. Qa1 {[%emt 0:02:13]} Kf8 {[%emt 0:00:36]} 29. h4 {[%emt 0:01:09]}
Ke7 {[%emt 0:03:08]} 30. Kh2 {[%emt 0:00:07]} R8c5 {[%emt 0:01:13]} 31. e5 {
[%emt 0:01:03]} Rxe5 {[%emt 0:00:57]} 32. Rd8 {[%emt 0:00:28]} Re2 {[%emt 0:00:
00]} 33. R1d2 {[%emt 0:00:27]} Rxd2 {[%emt 0:01:18]} 34. Rxd2 {[%emt 0:00:06]}
Qc1 {[%emt 0:00:22]} 35. Qxc1 {[%emt 0:00:12]} Rxc1 {[%emt 0:00:07]} 36. Bh3 {
[%emt 0:00:36]} f5 {[%emt 0:00:39]} 37. Bg2 {[%emt 0:01:02]} Ra1 {[%emt 0:00:
00]} 38. Rc2 {[%emt 0:00:25]} Rxa2 {[%emt 0:00:10]} 39. Rc7+ {[%emt 0:00:04]}
Kd6 {[%emt 0:00:15]} 40. Rc6+ {[%emt 0:00:35]} Ke5 {[%emt 0:00:15]} 41. Kg1 {
[%emt 0:30:46]} Rxg2+ {[%emt 0:30:10]} 42. Kxg2 {[%emt 0:00:03]} Bd5+ {[%emt 0:
00:00]} 43. Kf2 {[%emt 0:00:03]} Bxc6 {[%emt 0:00:13]} 0-1

[Event "44th Chess Olympiad Women 2022"]
[Site "Chennai"]
[Date "2022.08.03"]
[Round "6.28"]
[White "Pires, Luzia"]
[Black "Okuyaz, Duru"]
[Result "0-1"]
[WhiteElo "1842"]
[BlackElo "2090"]
[Annotator "NA RC"]
[PlyCount "138"]
[EventDate "2022.??.??"]
[TimeControl "60"]

1. d4 {[%emt 0:00:32]} d5 {[%emt 0:00:06]} 2. Nf3 {[%emt 0:00:18]} Nf6 {
[%emt 0:00:07]} 3. e3 {[%emt 0:02:02]} Bf5 {[%emt 0:00:29]} 4. Bd3 {[%emt 0:00:
00]} Bxd3 {[%emt 0:01:18]} 5. Qxd3 {[%emt 0:06:12]} Nbd7 {[%emt 0:00:27]} 6.
Nbd2 {[%emt 0:01:06]} e6 {[%emt 0:00:58]} 7. O-O {[%emt 0:00:22]} Be7 {[%emt 0:
00:00]} 8. b3 {[%emt 0:00:14]} O-O {[%emt 0:01:50]} 9. Bb2 {[%emt 0:00:28]} c5
{[%emt 0:01:37]} 10. c4 {[%emt 0:02:06]} cxd4 {[%emt 0:04:38]} 11. exd4 {
[%emt 0:00:25]} dxc4 {[%emt 0:04:46]} 12. bxc4 {[%emt 0:00:26]} Rc8 {[%emt 0:
00:00]} 13. Rac1 {[%emt 0:08:36]} Qa5 {[%emt 0:02:51]} 14. Qb3 {[%emt 0:01:23]}
Rc7 {[%emt 0:11:34]} 15. Rfe1 {[%emt 0:01:19]} Rfc8 {[%emt 0:02:00]} 16. Bc3 {
[%emt 0:01:12]} Qa6 {[%emt 0:02:19]} 17. h3 {[%emt 0:18:01]} Bd6 {[%emt 0:00:
00]} 18. Bb2 {[%emt 0:07:59]} Bf4 {[%emt 0:01:06]} 19. Rc2 {[%emt 0:01:14]} Nb6
{[%emt 0:05:46]} 20. Rec1 {[%emt 0:03:47]} Qa5 {[%emt 0:04:09]} 21. Qd3 {
[%emt 0:06:39]} Qh5 {[%emt 0:06:36]} 22. Re1 {[%emt 0:02:50]} Nfd5 {[%emt 0:00:
00]} 23. Ba3 {[%emt 0:04:59]} Bxd2 {[%emt 0:01:43]} 24. Nxd2 {[%emt 0:00:21]}
Nf4 {[%emt 0:00:39]} 25. Qe4 {[%emt 0:01:43]} Ng6 {[%emt 0:06:34]} 26. Bd6 {
[%emt 0:09:17]} Rc6 {[%emt 0:02:23]} 27. Bc5 {[%emt 0:01:04]} Nd7 {[%emt 0:00:
00]} 28. Ba3 {[%emt 0:00:24]} Nf6 {[%emt 0:00:44]} 29. Qe2 {[%emt 0:08:18]} Qf5
{[%emt 0:02:28]} 30. Rec1 {[%emt 0:01:34]} Nd5 {[%emt 0:04:14]} 31. Qe4 {
[%emt 0:03:33]} Qxe4 {[%emt 0:01:11]} 32. Nxe4 {[%emt 0:00:19]} Ndf4 {[%emt 0:
00:00]} 33. Kf1 {[%emt 0:03:41]} Rd8 {[%emt 0:02:42]} 34. Rd2 {[%emt 0:01:56]}
f5 {[%emt 0:04:10]} 35. Ng5 {[%emt 0:01:07]} Ne5 {[%emt 0:03:00]} 36. c5 {
[%emt 0:01:35]} h6 {[%emt 0:01:02]} 37. Nf3 {[%emt 0:00:42]} Nxf3 {[%emt 0:00:
00]} 38. gxf3 {[%emt 0:00:06]} Nxh3 {[%emt 0:00:21]} 39. Ke2 {[%emt 0:00:16]}
Nf4+ {[%emt 0:00:12]} 40. Ke3 {[%emt 0:00:19]} Nd5+ {[%emt 0:00:18]} 41. Ke2 {
[%emt 0:30:24]} Ra6 {[%emt 0:30:13]} 42. c6 {[%emt 0:01:32]} Rxa3 {[%emt 0:00:
00]} 43. cxb7 {[%emt 0:00:00]} Rc3 {[%emt 0:00:00]} 44. Rxc3 {[%emt 0:00:00]}
Nxc3+ {[%emt 0:00:00]} 45. Kd3 {[%emt 0:00:00]} Nd5 {[%emt 0:00:00]} 46. a4 {
[%emt 0:00:00]} Rb8 {[%emt 0:00:00]} 47. Rb2 {[%emt 0:00:00]} Nb6 {[%emt 0:00:
00]} 48. a5 {[%emt 0:00:00]} Rxb7 {[%emt 0:00:00]} 49. axb6 {[%emt 0:00:00]}
Rxb6 {[%emt 0:00:00]} 50. Ra2 {[%emt 0:00:00]} a6 {[%emt 0:00:00]} 51. Kc4 {
[%emt 0:00:00]} Rc6+ {[%emt 0:00:00]} 52. Kd3 {[%emt 0:00:00]} g5 {[%emt 0:00:
00]} 53. Ra1 {[%emt 0:00:00]} Kg7 {[%emt 0:00:00]} 54. Kd2 {[%emt 0:00:00]} Kg6
{[%emt 0:00:00]} 55. Ke3 {[%emt 0:00:00]} h5 {[%emt 0:00:00]} 56. Ra3 {[%emt 0:
00:00]} h4 {[%emt 0:00:00]} 57. Ra1 {[%emt 0:00:00]} Rd6 {[%emt 0:00:00]} 58.
Ra4 {[%emt 0:00:00]} h3 {[%emt 0:00:00]} 59. Ra1 {[%emt 0:00:00]} Kh5 {[%emt 0:
00:00]} 60. Ke2 {[%emt 0:00:00]} Rxd4 {[%emt 0:04:11]} 61. Rxa6 {[%emt 0:00:00]
} h2 {[%emt 0:00:21]} 62. Ra1 {[%emt 0:00:00]} Kh4 {[%emt 0:00:14]} 63. Ke3 {
[%emt 0:00:00]} Rf4 {[%emt 0:00:39]} 64. Ra8 {[%emt 0:00:00]} Rxf3+ {[%emt 0:
00:00]} 65. Ke2 {[%emt 0:00:00]} Rh3 {[%emt 0:00:37]} 66. Rh8+ {[%emt 0:01:27]}
Kg4 {[%emt 0:00:04]} 67. f3+ {[%emt 0:00:27]} Kg3 {[%emt 0:00:06]} 68. Rg8 {
[%emt 0:00:30]} h1=Q {[%emt 0:00:32]} 69. Rxg5+ {[%emt 0:00:10]} Kf4 {[%emt 0:
00:00]} 0-1

[Event "44th Chess Olympiad Women 2022"]
[Site "Chennai"]
[Date "2022.08.03"]
[Round "6.29"]
[White "Caku, Kler"]
[Black "Sibajeva, Marija"]
[Result "0-1"]
[WhiteElo "1626"]
[BlackElo "2032"]
[Annotator "NA RC"]
[PlyCount "80"]
[EventDate "2022.??.??"]
[TimeControl "60"]

1. e4 {[%emt 0:00:01]} d5 {[%emt 0:00:03]} 2. exd5 {[%emt 0:00:11]} Qxd5 {
[%emt 0:00:04]} 3. Nc3 {[%emt 0:00:17]} Qa5 {[%emt 0:00:05]} 4. d4 {[%emt 0:00:
00]} Nf6 {[%emt 0:00:06]} 5. Nf3 {[%emt 0:00:12]} Bf5 {[%emt 0:00:07]} 6. Bc4 {
[%emt 0:00:28]} e6 {[%emt 0:00:06]} 7. Bd2 {[%emt 0:01:16]} Bb4 {[%emt 0:00:11]
} 8. Nh4 {[%emt 0:06:40]} Bg6 {[%emt 0:01:13]} 9. Nxg6 {[%emt 0:00:25]} hxg6 {
[%emt 0:00:06]} 10. Qe2 {[%emt 0:00:53]} Qh5 {[%emt 0:05:39]} 11. d5 {[%emt 0:
00:00]} Qxe2+ {[%emt 0:09:56]} 12. Kxe2 {[%emt 0:00:13]} Bxc3 {[%emt 0:00:43]}
13. Bxc3 {[%emt 0:00:14]} exd5 {[%emt 0:00:09]} 14. Bxf6 {[%emt 0:00:19]} gxf6
{[%emt 0:00:52]} 15. Bxd5 {[%emt 0:00:10]} c6 {[%emt 0:00:07]} 16. Bc4 {
[%emt 0:01:22]} Nd7 {[%emt 0:00:29]} 17. Rad1 {[%emt 0:03:10]} Rd8 {[%emt 0:00:
00]} 18. f4 {[%emt 0:03:59]} Kf8 {[%emt 0:03:20]} 19. Rd2 {[%emt 0:06:29]} Kg7
{[%emt 0:01:03]} 20. Bb3 {[%emt 0:30:17]} f5 {[%emt 0:14:23]} 21. Rhd1 {
[%emt 0:05:32]} Rde8+ {[%emt 0:00:23]} 22. Kf3 {[%emt 0:00:30]} Nf6 {[%emt 0:
00:00]} 23. h3 {[%emt 0:05:09]} Rh4 {[%emt 0:00:07]} 24. Rd4 {[%emt 0:09:16]}
Nh5 {[%emt 0:04:49]} 25. a4 {[%emt 0:03:53]} Re7 {[%emt 0:05:38]} 26. c3 {
[%emt 0:06:08]} b6 {[%emt 0:04:54]} 27. Rh1 {[%emt 0:01:31]} c5 {[%emt 0:01:40]
} 28. Rc4 {[%emt 0:01:26]} Nf6 {[%emt 0:01:13]} 29. Bc2 {[%emt 0:04:11]} Rh8 {
[%emt 0:05:27]} 30. Rd1 {[%emt 0:01:07]} Rhe8 {[%emt 0:00:24]} 31. Rd2 {
[%emt 0:01:42]} Nd5 {[%emt 0:02:57]} 32. Rxd5 {[%emt 0:01:57]} Re3+ {[%emt 0:
00:00]} 33. Kf2 {[%emt 0:00:12]} Re2+ {[%emt 0:00:05]} 34. Kg3 {[%emt 0:02:17]}
Rxc2 {[%emt 0:00:16]} 35. b4 {[%emt 0:00:41]} cxb4 {[%emt 0:03:20]} 36. Rxb4 {
[%emt 0:00:25]} Ree2 {[%emt 0:01:14]} 37. Rc4 {[%emt 0:00:54]} Rxg2+ {[%emt 0:
00:00]} 38. Kh4 {[%emt 0:00:02]} Rc1 {[%emt 0:00:30]} 39. Rd7 {[%emt 0:00:34]}
Rh1 {[%emt 0:00:09]} 40. Rcc7 {[%emt 0:00:58]} Rg4# {[%emt 0:00:05]} 0-1

[Event "44th Chess Olympiad Women 2022"]
[Site "Chennai"]
[Date "2022.08.03"]
[Round "6.29"]
[White "Shabanaj, Eglantina"]
[Black "Martynkova, Olena"]
[Result "1/2-1/2"]
[WhiteElo "1940"]
[BlackElo "2213"]
[Annotator "NA RC"]
[PlyCount "92"]
[EventDate "2022.??.??"]
[TimeControl "60"]

1. Nf3 {[%emt 0:00:03]} Nf6 {[%emt 0:00:24]} 2. g3 {[%emt 0:00:28]} g6 {
[%emt 0:01:05]} 3. Bg2 {[%emt 0:00:41]} Bg7 {[%emt 0:00:19]} 4. d4 {[%emt 0:00:
00]} O-O {[%emt 0:00:38]} 5. b3 {[%emt 0:00:50]} d6 {[%emt 0:04:54]} 6. Bb2 {
[%emt 0:00:42]} e5 {[%emt 0:02:15]} 7. dxe5 {[%emt 0:05:36]} Ng4 {[%emt 0:00:
00]} 8. Nbd2 {[%emt 0:01:09]} Nc6 {[%emt 0:04:37]} 9. O-O {[%emt 0:04:23]}
Ngxe5 {[%emt 0:04:38]} 10. Nxe5 {[%emt 0:03:09]} Nxe5 {[%emt 0:06:31]} 11. Rb1
{[%emt 0:02:29]} d5 {[%emt 0:06:29]} 12. e3 {[%emt 0:11:14]} Bg4 {[%emt 0:00:
00]} 13. f3 {[%emt 0:05:25]} Be6 {[%emt 0:11:38]} 14. Qe2 {[%emt 0:05:39]} Re8
{[%emt 0:06:01]} 15. Rfd1 {[%emt 0:02:56]} c6 {[%emt 0:03:38]} 16. Nf1 {
[%emt 0:04:35]} Qe7 {[%emt 0:02:46]} 17. h3 {[%emt 0:09:00]} f5 {[%emt 0:03:33]
} 18. f4 {[%emt 0:07:22]} Nd7 {[%emt 0:02:21]} 19. c4 {[%emt 0:01:52]} dxc4 {
[%emt 0:01:51]} 20. Bxg7 {[%emt 0:02:07]} Kxg7 {[%emt 0:01:51]} 21. bxc4 {
[%emt 0:00:03]} Nc5 {[%emt 0:04:22]} 22. Rd4 {[%emt 0:05:46]} Bf7 {[%emt 0:00:
00]} 23. Rbd1 {[%emt 0:03:39]} Qf6 {[%emt 0:05:30]} 24. g4 {[%emt 0:04:05]}
Rad8 {[%emt 0:03:53]} 25. g5 {[%emt 0:01:15]} Qe7 {[%emt 0:00:12]} 26. Qb2 {
[%emt 0:03:43]} Kg8 {[%emt 0:00:34]} 27. h4 {[%emt 0:03:20]} Rxd4 {[%emt 0:00:
00]} 28. Rxd4 {[%emt 0:02:32]} Na4 {[%emt 0:01:42]} 29. Qd2 {[%emt 0:01:26]}
Nb6 {[%emt 0:00:29]} 30. Kf2 {[%emt 0:04:03]} Nxc4 {[%emt 0:02:01]} 31. Qd3 {
[%emt 0:00:48]} Qa3 {[%emt 0:03:14]} 32. Qxa3 {[%emt 0:01:58]} Nxa3 {[%emt 0:
00:00]} 33. Rd7 {[%emt 0:00:30]} Rb8 {[%emt 0:00:43]} 34. e4 {[%emt 0:00:29]}
fxe4 {[%emt 0:00:31]} 35. Bxe4 {[%emt 0:00:08]} Nb5 {[%emt 0:00:56]} 36. Ne3 {
[%emt 0:01:46]} Nc3 {[%emt 0:00:21]} 37. Bf3 {[%emt 0:00:02]} Be6 {[%emt 0:00:
00]} 38. Re7 {[%emt 0:00:14]} Bf5 {[%emt 0:00:15]} 39. Bg4 {[%emt 0:01:17]}
Ne4+ {[%emt 0:00:56]} 40. Kf3 {[%emt 0:00:22]} Nd6 {[%emt 0:00:15]} 41. h5 {
[%emt 0:31:51]} Rf8 {[%emt 0:14:00]} 42. Bxf5 {[%emt 0:00:00]} Nxf5 {[%emt 0:
00:00]} 43. Nxf5 {[%emt 0:00:00]} Rxf5 {[%emt 0:00:08]} 44. h6 {[%emt 0:00:00]}
Rf7 {[%emt 0:01:52]} 45. Re8+ {[%emt 0:00:00]} Rf8 {[%emt 0:00:05]} 46. Re7 {
[%emt 0:00:00]} Rf7 {[%emt 0:00:14]} 1/2-1/2

[Event "44th Chess Olympiad Women 2022"]
[Site "Chennai"]
[Date "2022.08.03"]
[Round "6.29"]
[White "Simkunaite, Gabija"]
[Black "Gjergji, Rozana"]
[Result "1-0"]
[WhiteElo "2010"]
[BlackElo "1920"]
[Annotator "NA RC"]
[PlyCount "93"]
[EventDate "2022.??.??"]
[TimeControl "60"]

1. e4 {[%emt 0:00:13]} d5 {[%emt 0:00:06]} 2. exd5 {[%emt 0:00:16]} Qxd5 {
[%emt 0:00:07]} 3. Nc3 {[%emt 0:00:07]} Qa5 {[%emt 0:00:05]} 4. Bc4 {[%emt 0:
00:00]} Nf6 {[%emt 0:00:09]} 5. d3 {[%emt 0:00:20]} c6 {[%emt 0:00:15]} 6. Bd2
{[%emt 0:00:32]} Qd8 {[%emt 0:00:20]} 7. Nf3 {[%emt 0:02:13]} Bf5 {[%emt 0:00:
00]} 8. h3 {[%emt 0:03:03]} h5 {[%emt 0:00:56]} 9. Qe2 {[%emt 0:03:40]} Nbd7 {
[%emt 0:04:50]} 10. Ne4 {[%emt 0:02:23]} Bxe4 {[%emt 0:05:11]} 11. dxe4 {
[%emt 0:00:08]} e6 {[%emt 0:00:29]} 12. O-O {[%emt 0:02:31]} Qc7 {[%emt 0:00:
00]} 13. e5 {[%emt 0:08:30]} Nd5 {[%emt 0:01:12]} 14. Rac1 {[%emt 0:01:53]} Be7
{[%emt 0:04:45]} 15. Bxd5 {[%emt 0:04:29]} exd5 {[%emt 0:04:24]} 16. e6 {
[%emt 0:00:20]} fxe6 {[%emt 0:00:52]} 17. Qxe6 {[%emt 0:00:06]} Qd6 {[%emt 0:
00:00]} 18. Qxd6 {[%emt 0:05:10]} Bxd6 {[%emt 0:00:10]} 19. Rfe1+ {[%emt 0:00:
00]} Kf8 {[%emt 0:05:54]} 20. c4 {[%emt 0:05:13]} Nf6 {[%emt 0:06:26]} 21. Re6
{[%emt 0:01:43]} Rd8 {[%emt 0:03:35]} 22. Rxd6 {[%emt 0:12:00]} Rxd6 {[%emt 0:
00:00]} 23. Bb4 {[%emt 0:00:04]} Ke7 {[%emt 0:00:06]} 24. cxd5 {[%emt 0:01:18]}
Rc8 {[%emt 0:12:38]} 25. Re1+ {[%emt 0:06:19]} Kd7 {[%emt 0:00:25]} 26. dxc6+ {
[%emt 0:04:10]} bxc6 {[%emt 0:05:09]} 27. Bxd6 {[%emt 0:01:01]} Kxd6 {[%emt 0:
00:00]} 28. Nd4 {[%emt 0:02:12]} Rc7 {[%emt 0:06:37]} 29. Nf5+ {[%emt 0:04:42]}
Kd5 {[%emt 0:01:41]} 30. f4 {[%emt 0:03:21]} c5 {[%emt 0:04:21]} 31. Re5+ {
[%emt 0:01:48]} Kc4 {[%emt 0:00:29]} 32. Re3 {[%emt 0:07:39]} Rd7 {[%emt 0:00:
00]} 33. Ra3 {[%emt 0:04:59]} Nd5 {[%emt 0:03:34]} 34. g3 {[%emt 0:00:55]} g6 {
[%emt 0:09:30]} 35. Nh4 {[%emt 0:01:04]} Rb7 {[%emt 0:00:13]} 36. Ra4+ {
[%emt 0:07:03]} Kd3 {[%emt 0:00:41]} 37. b3 {[%emt 0:00:07]} Re7 {[%emt 0:00:
00]} 38. Ng2 {[%emt 0:03:17]} Kd2 {[%emt 0:05:38]} 39. g4 {[%emt 0:01:55]} h4 {
[%emt 0:01:05]} 40. Ra6 {[%emt 0:01:10]} Ne3 {[%emt 0:03:22]} 41. Nxh4 {
[%emt 0:01:43]} Rh7 {[%emt 0:02:32]} 42. Kf2 {[%emt 0:05:02]} Rxh4 {[%emt 0:00:
00]} 43. Rd6+ {[%emt 0:00:07]} Kc3 {[%emt 0:00:23]} 44. Kxe3 {[%emt 0:00:05]}
Rxh3+ {[%emt 0:00:09]} 45. Ke4 {[%emt 0:00:16]} Rh2 {[%emt 0:01:08]} 46. Ra6 {
[%emt 0:01:12]} Re2+ {[%emt 0:03:51]} 47. Kf3 {[%emt 0:00:14]} 1-0

[Event "44th Chess Olympiad Women 2022"]
[Site "Chennai"]
[Date "2022.08.03"]
[Round "6.29"]
[White "Zaksaite, Salomeja"]
[Black "Shuqja, Klean"]
[Result "1/2-1/2"]
[WhiteElo "2212"]
[BlackElo "1883"]
[Annotator "TA"]
[PlyCount "115"]
[EventDate "2022.??.??"]
[TimeControl "60"]

{[%evp 10,115,62,62,62,60,63,62,68,54,55,54,52,54,48,47,53,29,31,16,22,11,17,0,
0,0,97,81,135,12,18,0,0,0,0,-38,-37,-36,-36,-81,-83,-94,-85,-88,-43,-36,-34,
-41,-37,-37,-37,-30,0,0,0,0,0,-96,-50,-49,-44,-84,-64,-59,-5,-6,0,0,6,6,6,2,5,
8,8,0,0,0,0,0,0,0,8,8,10,10,16,0,0,0,0,0,0,0,0,0,0,0,0,0,0,0,0,0,16,16,16,16]} 
1. e4 {[%emt 0:00:30]} d5 {[%emt 0:00:01]} 2. exd5 {[%emt 0:00:00]} Qxd5 {
[%emt 0:00:03]} 3. Nc3 {[%emt 0:00:05]} Qd8 {[%emt 0:00:03]} 4. d4 {[%emt 0:00:
00]} Nf6 {[%emt 0:00:04]} 5. Nf3 {[%emt 0:00:08]} Bg4 {[%emt 0:00:02]} 6. h3 {
[%emt 0:00:14]} Bxf3 {[%emt 0:00:03] B01: Scandinavian Defence.} 7. Qxf3 {
[%emt 0:00:04]} c6 {[%emt 0:00:08]} 8. Be3 {[%emt 0:00:08] White is more
active.} e6 {[%emt 0:00:07] White is slightly better.} 9. O-O-O {[%emt 0:01:21]
} Bb4 {[%emt 0:00:34] The main line 9...Bb4 scores better than 9...Nbd7.} 10.
Ne4 {[%emt 0:11:37]} Nxe4 {[%emt 0:00:13]} 11. Qxe4 {[%emt 0:00:04][%cal Yd4d5]
Strongly threatening d5!} Qd5 {[%emt 0:00:16]} 12. Qxd5 {[%emt 0:01:25]} cxd5 {
[%emt 0:00:02]} 13. h4 {[%emt 0:01:23]} h5 {[%emt 0:04:17] [#]} 14. Be2 $146 {
[%emt 0:00:13]} ({Predecessor:} 14. Kb1 Nd7 15. Bd3 Nf6 16. f3 O-O-O 17. c3 Be7
18. b3 Kb8 19. Rhe1 Ne8 20. Bf2 {1-0 (57) Asadli,V (2454)-Wong,J (2185)
Budapest 2019}) 14... Nd7 {[%emt 0:00:51]} 15. f3 {[%emt 0:01:08]} Be7 {
[%emt 0:04:31]} 16. Kb1 {[%emt 0:00:58]} Rc8 {[%emt 0:08:21]} 17. Rd3 {[%emt 0:
00:00]} f6 {[%emt 0:04:47]} (17... Nb6 $11 {remains equal.}) 18. Rb3 $16 {
[%emt 0:00:58]} Rc7 {[%emt 0:03:56]} ({Better is} 18... b6) 19. Bf2 {[%emt 0:
00:00]} ({White has to play} 19. Bf4 $1 $16 {[%cal Rf4c7]} e5 20. Bg3) 19...
Bd6 $11 {[%emt 0:06:33]} 20. Re1 {[%emt 0:06:16]} Kf7 {[%emt 0:01:56]} 21. Bf1
{[%emt 0:00:10]} Rhc8 {[%emt 0:02:28]} 22. Re2 {[%emt 0:01:58]} Nb6 {[%emt 0:
00:00][%cal Yd7b6,Yb6c4,Yc4d2]} 23. Rbe3 {[%emt 0:04:31]} Nc4 {[%emt 0:05:07]}
24. Rxe6 {[%emt 0:03:25] [#]} Nd2+ $1 {[%emt 0:00:47] Discovered Attack} 25.
Rxd2 {[%emt 0:03:31]} Kxe6 {[%emt 0:00:06]} 26. g3 {[%emt 0:16:15]} Kf7 {
[%emt 0:03:14]} 27. f4 {[%emt 0:00:20] Inhibits g5.} g5 {[%emt 0:07:09]} 28.
fxg5 {[%emt 0:01:42]} fxg5 {[%emt 0:00:16] Hoping for ... Rf8.} 29. Bg2 {
[%emt 0:00:03]} Re8 {[%emt 0:03:38]} 30. Bxd5+ {[%emt 0:02:28]} Kf6 {[%emt 0:
03:10]} (30... Kg6 $5 {[%cal Rc7e7]} 31. c4 Bb4 $11) 31. c4 {[%emt 0:05:37]}
Rce7 {[%emt 0:03:01]} 32. c5 {[%emt 0:06:07]} Re2 {[%emt 0:00:00]} 33. Kc2 {
[%emt 0:16:42] [#]} (33. hxg5+ $11 Kg6 34. Rc2 Rxc2 35. Kxc2 Re2+ 36. Kd3 Rxf2
37. cxd6 Kxg5 38. d7 (38. Bxb7 Kf6 $11)) 33... Rxd2+ {[%emt 0:00:00]} ({
Black should play} 33... Bxc5 $1 $17 {Threatens to win with ...Bb4.} 34. hxg5+
(34. dxc5 Rxd2+ 35. Kxd2 Rd8 $17) 34... Kxg5) 34. Kxd2 $15 {[%emt 0:00:00] [#]}
Bxc5 $1 {[%emt 0:01:46][%cal Ye8d8] aiming for ...Rd8!} 35. hxg5+ {[%emt 0:05:
24]} (35. dxc5 Rd8 36. Bd4+ Ke7 $17) (35. Bxb7 Bb4+) 35... Kxg5 {[%emt 0:01:11]
[%cal Yc5d4]} 36. Bxb7 $17 {[%emt 0:00:26] Endgame KRB-KB} ({Not} 36. dxc5 $2
Rd8 37. Bd4 (37. Be3+ $2 Kg4 $19) 37... Rxd5 $19) 36... Bd6 {[%emt 0:00:38]} (
36... Bb4+ $15 37. Kd3 Kg4) 37. Bf3 $11 {[%emt 0:00:00] The position is equal.}
Bb4+ {[%emt 0:01:27]} 38. Kd3 {[%emt 0:00:14]} Be1 {[%emt 0:05:21]} 39. Be3+ {
[%emt 0:00:06]} Kg6 {[%emt 0:02:34]} 40. Bf4 {[%emt 0:00:15]} Kf5 {[%emt 0:14:
06]} 41. Bxh5 {[%emt 0:36:26] This bishop pair is nice.} Rh8 {[%emt 0:30:16]}
42. Be2 {[%emt 0:00:00]} Bxg3 {[%emt 0:00:00]} 43. Bd2 {[%emt 0:00:00]} Bf4 {
[%emt 0:00:00]} 44. Bc3 {[%emt 0:00:00]} Rh3+ {[%emt 0:00:00]} 45. Kc4 {
[%emt 0:00:00]} Ke4 {[%emt 0:00:00]} 46. a4 {[%emt 0:00:00]} Bc7 {[%emt 0:00:
00]} 47. Bg4 {[%emt 0:00:00]} Rh6 {[%emt 0:00:00]} 48. Bd7 {[%emt 0:00:00]} Rd6
{[%emt 0:00:00]} 49. Bb5 {[%emt 0:00:00]} a6 {[%emt 0:00:00]} 50. Be8 {[%emt 0:
00:00]} Re6 {[%emt 0:01:11]} ({Don't do} 50... Bb6 51. d5 $16) 51. Bd7 {
[%emt 0:00:00]} Rd6 {[%emt 0:00:08]} 52. Bc8 {[%emt 0:00:00][%cal Yd4d5]} Rc6+
{[%emt 0:00:27]} 53. Kb3 {[%emt 0:00:00] Black must now prevent Bb7.} Rb6+ {
[%emt 0:01:04]} 54. Kc2 {[%emt 0:00:00]} a5 {[%emt 0:04:36]} 55. Bd7 {[%emt 0:
00:00]} Rd6 {[%emt 0:01:01]} 56. Bh3 {[%emt 0:00:00]} Rxd4 {[%emt 0:01:21]} 57.
Bg2+ {[%emt 0:00:00]} Ke3 {[%emt 0:00:22]} 58. Bxd4+ {[%emt 0:00:00] Weighted
Error Value: White=0.13 (very precise) /Black=0.10 (very precise)} 1/2-1/2